bitfinex/quotes_SOLUSD_20241013
["timestamp","ask_amount","ask_price","bid_price","bid_amount"]
[1728801397771,6.8213,146.6,146.53,20.0]
[1728801397989,6.8213,146.6,146.54,23.776884]
[1728801398179,6.8213,146.6,146.54,36.54336042]
[1728801400491,6.8217,146.59,146.54,1.36449637]
[1728801400682,6.8217,146.59,146.53,11.40198005]
[1728801402475,6.6367,146.61,146.53,11.40198005]
[1728801402681,6.8214,146.6,146.54,1.36457032]
[1728801403097,6.8217,146.59,146.53,11.40198005]
[1728801407191,6.8222,146.58,146.52,23.776884]
[1728801412494,6.8222,146.58,146.52,35.17886405]
[1728801412692,6.8222,146.58,146.53,1.36470451]
[1728801412989,6.8217,146.59,146.53,1.36470451]
[1728801413190,6.8214,146.6,146.54,11.40198005]
[1728801413422,6.8214,146.6,146.55,1.36458619]
[1728801415495,6.6367,146.61,146.55,1.36458619]
[1728801415905,6.6367,146.61,146.55,23.776884]
[1728801416814,13.4576,146.61,146.55,23.776884]
[1728801417114,13.4576,146.61,146.56,1.36444265]
[1728801417302,13.4576,146.61,146.56,1.36442415]
[1728801417913,15.6674,146.62,146.56,1.36442415]
[1728801418119,15.6674,146.62,146.57,23.776884]
[1728801418317,15.6674,146.62,146.58,1.36420292]
[1728801420702,6.3544,146.65,146.59,35.17886405]
[1728801421302,6.3544,146.65,146.6,1.36403016]
[1728801421502,6.3544,146.65,146.59,35.17886405]
[1728801422014,6.3544,146.65,146.58,23.776884]
[1728801422212,6.3544,146.65,146.58,55.17886405]
[1728801422823,6.3544,146.65,146.59,12.76602916]
[1728801423122,6.3544,146.65,146.59,11.40198005]
[1728801424529,6.3544,146.65,146.6,23.776884]
[1728801426611,6.3544,146.65,146.59,23.776884]
[1728801431818,13.1733,146.65,146.59,23.776884]
[1728801437437,15.233,146.66,146.6,12.76598443]
[1728801437629,15.233,146.66,146.6,11.40198005]
[1728801438041,15.233,146.66,146.61,1.36392813]
[1728801438235,15.233,146.66,146.6,11.40198005]
[1728801438415,15.233,146.66,146.61,1.36392104]
[1728801443022,15.233,146.66,146.61,23.776884]
[1728801445047,15.233,146.66,146.62,1.36389966]
[1728801445221,15.233,146.66,146.61,23.776884]
[1728801447151,15.233,146.66,146.6,43.776884]
[1728801454067,15.233,146.66,146.6,55.17886405]
[1728801454261,15.233,146.66,146.6,23.776884]
[1728801454434,22.0518,146.66,146.59,35.17886405]
[1728801455635,6.8189,146.65,146.59,23.776884]
[1728801457346,6.8197,146.64,146.55,25.3088631]
[1728801457548,6.8197,146.64,146.56,11.40198005]
[1728801458555,6.8197,146.64,146.57,23.776884]
[1728801461045,6.8197,146.64,146.57,11.40198005]
[1728801461365,6.6617,146.65,146.57,20.0]
[1728801461366,6.8203,146.63,146.57,20.0]
[1728801462762,6.8203,146.62,146.57,20.0]
[1728801462970,22.237,146.62,146.57,20.0]
[1728801464064,6.8213,146.6,146.51,37.90906163]
[1728801464267,6.8213,146.6,146.52,11.40198005]
[1728801464442,6.8213,146.6,146.53,11.40198005]
[1728801464644,6.8213,146.6,146.54,11.40198005]
[1728801465271,6.8213,146.6,146.55,20.0]
[1728801467074,22.0784,146.62,146.52,23.776884]
[1728801467267,22.0784,146.62,146.52,35.17886405]
[1728801467268,6.8218,146.59,146.52,35.17886405]
[1728801468359,6.8218,146.59,146.53,20.0]
[1728801469975,6.8218,146.59,146.52,35.17886405]
[1728801476357,6.8225,146.58,146.52,20.0]
[1728801477674,6.8225,146.58,146.52,21.36478518]
[1728801478063,6.8225,146.58,146.52,32.76676523]
[1728801478271,35.5563,146.61,146.52,32.76676523]
[1728801478470,6.8219,146.59,146.52,31.40198005]
[1728801483071,35.5563,146.61,146.52,20.0]
[1728801483403,6.8222,146.58,146.52,23.776884]
[1728801486469,6.8231,146.56,146.51,0.9797646]
[1728801486689,6.1037,146.6,146.51,0.9797646]
[1728801486690,6.8237,146.55,146.51,0.9797646]
[1728801487799,6.8233,146.56,146.51,0.9797646]
[1728801489196,6.4161,146.56,146.51,0.9797646]
[1728801489400,6.824,146.55,146.51,0.9797646]
[1728801489974,13.2395,146.56,146.51,0.9797646]
[1728801492378,6.4161,146.56,146.51,0.9797646]
[1728801492779,13.2392,146.56,146.51,0.9797646]
[1728801495409,15.5563,146.57,146.52,1.36487534]
[1728801495616,15.5563,146.57,146.52,11.40198005]
[1728801495783,6.8218,146.59,146.52,11.40198005]
[1728801495989,6.8226,146.58,146.51,0.9797646]
[1728801496304,6.8228,146.57,146.51,12.38174465]
[1728801502610,6.4161,146.6,146.51,12.38174465]
[1728801502813,6.8223,146.58,146.52,35.17886405]
[1728801508209,6.8227,146.57,146.51,12.38174465]
[1728801508596,6.822,146.59,146.52,23.776884]
[1728801510021,13.2375,146.6,146.53,31.40198005]
[1728801518725,6.4161,146.6,146.54,35.17886405]
[1728801519106,21.8577,146.61,146.54,35.17886405]
[1728801529123,15.0369,146.61,146.53,31.40198005]
[1728801529319,6.8216,146.6,146.53,31.40198005]
[1728801529532,6.8216,146.6,146.54,1.36454681]
[1728801529917,6.8216,146.6,146.53,31.40198005]
[1728801530621,6.8216,146.6,146.54,23.776884]
[1728801539135,6.8216,146.6,146.54,27.66570834]
[1728801539650,21.8578,146.61,146.54,27.66570834]
[1728801539827,15.0369,146.61,146.54,27.66570834]
[1728801540425,15.0369,146.61,146.54,39.06768839]
[1728801541145,21.8577,146.61,146.54,39.06768839]
[1728801541749,15.0369,146.61,146.54,40.43211127]
[1728801542325,15.0369,146.61,146.55,11.40198005]
[1728801542551,30.1102,146.64,146.57,11.40198005]
[1728801542844,30.1102,146.64,146.58,1.36420319]
[1728801545048,30.1102,146.64,146.57,11.40198005]
[1728801545347,30.1102,146.64,146.58,23.776884]
[1728801547137,6.82,146.63,146.58,23.776884]
[1728801550034,6.82,146.63,146.57,23.776884]
[1728801560461,30.1102,146.64,146.58,11.40198005]
[1728801560636,23.2907,146.64,146.58,11.40198005]
[1728801560842,23.2907,146.64,146.57,23.776884]
[1728801560843,22.7126,146.68,146.6,11.40198005]
[1728801561064,22.7126,146.68,146.61,12.76589349]
[1728801561248,29.5302,146.68,146.61,12.76589349]
[1728801562278,22.7126,146.68,146.61,12.76589349]
[1728801562567,29.5303,146.68,146.62,23.776884]
[1728801565165,6.818,146.67,146.6,11.40198005]
[1728801565365,6.818,146.67,146.62,23.776884]
[1728801572481,6.818,146.67,146.62,25.14075176]
[1728801573684,6.818,146.67,146.62,23.776884]
[1728801573894,6.818,146.67,146.62,25.14075158]
[1728801577476,6.818,146.67,146.62,23.776884]
[1728801581396,6.818,146.67,146.62,25.14073657]
[1728801581584,29.5302,146.68,146.62,25.14073657]
[1728801581785,29.5302,146.68,146.62,23.776884]
[1728801599794,29.5302,146.68,146.62,25.1407074]
[1728801601414,22.7126,146.68,146.62,25.1407074]
[1728801603513,16.5358,146.68,146.62,36.54268745]
[1728801604811,16.5358,146.68,146.62,35.17886405]
[1728801615550,6.8172,146.69,146.64,23.776884]
[1728801616413,6.3768,146.71,146.66,11.40198005]
[1728801616611,6.3768,146.71,146.67,1.36343885]
[1728801616811,16.5721,146.72,146.67,1.36343885]
[1728801617328,16.5721,146.72,146.67,23.776884]
[1728801618534,16.5721,146.72,146.66,43.776884]
[1728801623725,16.5721,146.72,146.66,23.776884]
[1728801625658,6.8161,146.71,146.65,43.776884]
[1728801626354,6.8166,146.7,146.63,20.0]
[1728801627562,6.8166,146.7,146.65,20.0]
[1728801639462,6.8175,146.69,146.64,23.776884]
[1728801639764,6.8175,146.69,146.63,20.0]
[1728801639985,6.8175,146.68,146.63,20.0]
[1728801640538,6.8175,146.68,146.62,20.0]
[1728801640752,6.8175,146.68,146.63,23.776884]
[1728801647100,6.8175,146.68,146.62,20.0]
[1728801647304,6.8175,146.68,146.59,20.0]
[1728801647305,16.2045,146.68,146.59,20.0]
[1728801647519,6.8192,146.65,146.58,26.86938005]
[1728801647691,6.8192,146.65,146.58,15.4674]
[1728801649102,6.8192,146.65,146.59,23.776884]
[1728801649298,6.3111,146.67,146.59,35.17886405]
[1728801649476,13.1291,146.67,146.61,23.776884]
[1728801649677,13.1291,146.67,146.61,25.14085693]
[1728801649872,13.1291,146.67,146.61,23.776884]
[1728801653222,13.1291,146.67,146.61,25.14084937]
[1728801654543,13.1291,146.67,146.61,23.776884]
[1728801656109,6.3111,146.67,146.61,23.776884]
[1728801657740,13.1291,146.67,146.61,23.776884]
[1728801661238,13.1291,146.67,146.6,43.776884]
[1728801668440,16.2045,146.68,146.6,43.776884]
[1728801668441,23.0221,146.68,146.61,11.40198005]
[1728801668734,16.2045,146.68,146.62,23.776884]
[1728801669244,16.2045,146.68,146.63,12.76576191]
[1728801672837,16.2045,146.68,146.63,21.36378186]
[1728801673634,16.2045,146.68,146.63,20.0]
[1728801690051,16.2045,146.68,146.62,35.17886405]
[1728801690256,16.2045,146.68,146.63,20.0]
[1728801693535,23.0221,146.68,146.63,20.0]
[1728801701460,16.2045,146.68,146.63,20.0]
[1728801735408,16.2045,146.68,146.63,21.36381921]
[1728801735609,16.2045,146.68,146.63,20.0]
[1728801747729,16.2045,146.68,146.63,21.36381582]
[1728801748811,16.2045,146.68,146.63,20.0]
[1728801769631,13.1307,146.71,146.63,21.36372803]
[1728801771329,13.1307,146.71,146.64,23.776884]
[1728801772146,13.1307,146.71,146.64,35.17886405]
[1728801773838,13.1307,146.71,146.65,1.36361326]
[1728801774731,6.3144,146.71,146.66,25.14044903]
[1728801775421,6.3144,146.71,146.66,23.776884]
[1728801780550,6.3144,146.71,146.62,20.0]
[1728801780752,6.3144,146.71,146.65,43.776884]
[1728801780753,13.1306,146.71,146.65,43.776884]
[1728801784060,6.8166,146.7,146.64,20.0]
[1728801784554,6.8166,146.7,146.62,31.40198005]
[1728801784766,6.8166,146.7,146.64,20.0]
[1728801788345,6.8171,146.69,146.64,20.0]
[1728801789456,6.8176,146.68,146.61,20.57042822]
[1728801789768,6.8176,146.68,146.61,23.776884]
[1728801789945,6.8172,146.69,146.61,23.776884]
[1728801790163,6.8172,146.69,146.61,11.40198005]
[1728801790541,6.8172,146.69,146.62,23.776884]
[1728801793342,21.8701,146.68,146.62,20.0]
[1728801794364,21.8701,146.68,146.61,43.776884]
[1728801800471,6.8181,146.67,146.61,43.776884]
[1728801800660,6.8185,146.66,146.61,43.776884]
[1728801800848,6.8185,146.66,146.58,15.4332]
[1728801801058,6.8185,146.66,146.59,23.776884]
[1728801802369,6.8185,146.66,146.6,20.0]
[1728801802875,6.3314,146.67,146.55,20.0]
[1728801803076,6.3314,146.67,146.57,20.0]
[1728801803282,6.819,146.65,146.57,20.0]
[1728801804448,6.819,146.65,146.58,23.776884]
[1728801804951,6.819,146.65,146.59,20.0]
[1728801815387,15.6441,146.64,146.59,20.0]
[1728801816890,22.4636,146.64,146.59,20.0]
[1728801818193,6.8198,146.63,146.55,15.36372318]
[1728801818488,6.8198,146.63,146.57,23.776884]
[1728801818672,6.8198,146.63,146.56,23.776884]
[1728801820388,6.8198,146.63,146.57,20.0]
[1728801821790,22.4635,146.64,146.57,20.0]
[1728801827493,22.4635,146.64,146.58,1.36426537]
[1728801828772,22.4635,146.64,146.57,20.0]
[1728801828970,6.82,146.63,146.57,20.0]
[1728801829172,6.82,146.63,146.56,23.776884]
[1728801829395,6.82,146.63,146.57,20.0]
[1728801843113,13.2895,146.63,146.57,20.0]
[1728801859229,13.2895,146.63,146.58,1.36431356]
[1728801859606,13.2895,146.63,146.57,20.0]
[1728801860003,13.2895,146.63,146.52,0.8396572]
[1728801860004,6.4695,146.63,146.52,0.8396572]
[1728801860219,6.8205,146.62,146.54,20.0]
[1728801860421,6.8205,146.62,146.55,23.776884]
[1728801860628,6.8205,146.62,146.56,20.0]
[1728801860821,6.4695,146.63,146.56,20.0]
[1728801860822,6.8208,146.61,146.56,20.0]
[1728801861331,6.8208,146.61,146.53,20.0]
[1728801861727,6.8205,146.62,146.53,20.0]
[1728801862024,6.8205,146.62,146.54,23.776884]
[1728801862232,6.8205,146.62,146.55,20.0]
[1728801870112,6.8205,146.62,146.55,21.3644439]
[1728801870539,6.8205,146.62,146.55,20.0]
[1728801870937,13.2894,146.63,146.56,35.17886405]
[1728801871137,13.2894,146.63,146.56,25.14129128]
[1728801871340,13.2894,146.63,146.56,23.776884]
[1728801883551,6.8203,146.62,146.56,23.776884]
[1728801890149,6.8203,146.62,146.56,35.17886405]
[1728801890554,6.8203,146.62,146.56,23.776884]
[1728801892158,6.4695,146.63,146.58,23.776884]
[1728801892365,22.4635,146.64,146.58,23.776884]
[1728801893235,22.4635,146.64,146.59,1.36419]
[1728801894670,22.4635,146.64,146.58,23.776884]
[1728801897647,22.4635,146.64,146.59,1.36417672]
[1728801898963,22.4635,146.64,146.58,23.776884]
[1728801899161,22.4635,146.64,146.59,1.36417617]
[1728801899571,22.4635,146.64,146.58,23.776884]
[1728801900451,22.4635,146.64,146.58,25.14105974]
[1728801900655,22.4635,146.64,146.58,23.776884]
[1728801901165,22.4635,146.64,146.58,25.1410595]
[1728801902871,22.4635,146.64,146.58,23.776884]
[1728801903060,6.8194,146.64,146.58,23.776884]
[1728801903250,6.8194,146.64,146.59,1.36417407]
[1728801903645,6.8194,146.64,146.58,23.776884]
[1728801903847,25.5225589,146.67,146.58,23.776884]
[1728801904146,6.8199,146.63,146.58,23.776884]
[1728801904654,6.8205,146.62,146.56,20.0]
[1728801905253,6.8205,146.62,146.56,31.40198005]
[1728801905983,6.8205,146.62,146.57,1.36430287]
[1728801907871,6.8205,146.62,146.56,31.40198005]
[1728801908851,6.8205,146.62,146.56,20.0]
[1728801917275,6.8205,146.62,146.55,43.776884]
[1728801924585,6.8205,146.62,146.55,55.17886405]
[1728801931892,6.8205,146.62,146.55,43.776884]
[1728801933072,6.821,146.61,146.53,20.0]
[1728801933274,6.821,146.61,146.55,20.0]
[1728801934367,22.2707,146.63,146.53,23.776884]
[1728801934687,6.8213,146.6,146.53,23.776884]
[1728801935890,6.8213,146.6,146.54,20.0]
[1728801941498,6.8209,146.61,146.54,20.0]
[1728801953183,6.8209,146.61,146.55,1.36451645]
[1728801955185,6.8209,146.61,146.54,20.0]
[1728801955620,6.8209,146.61,146.55,1.36446734]
[1728801957914,6.8209,146.61,146.55,23.776884]
[1728801959396,22.2707,146.63,146.53,20.0]
[1728801959597,6.8212,146.6,146.54,23.776884]
[1728801959802,6.8212,146.6,146.55,20.0]
[1728801960491,22.2707,146.63,146.55,20.0]
[1728801960820,6.8218,146.59,146.53,20.0]
[1728801961823,6.8214,146.6,146.53,20.0]
[1728801964919,22.2707,146.63,146.53,31.40198005]
[1728801965122,6.8204,146.62,146.55,31.40198005]
[1728801965328,6.8204,146.62,146.56,1.36435003]
[1728801965645,29.0905,146.63,146.56,1.36435003]
[1728801965924,22.2707,146.63,146.57,35.17886405]
[1728801966113,22.2707,146.63,146.58,12.76610379]
[1728801968426,15.719,146.63,146.58,12.76610379]
[1728801968732,6.819,146.65,146.58,12.76610379]
[1728801968918,6.819,146.65,146.58,1.36412374]
[1728801969326,6.819,146.65,146.58,12.76610379]
[1728801969547,15.5946,146.66,146.59,23.776884]
[1728801969843,22.4134,146.66,146.6,1.36404067]
[1728801971308,22.4134,146.66,146.59,23.776884]
[1728801973617,6.819,146.65,146.59,23.776884]
[1728801983447,15.5946,146.66,146.57,20.0]
[1728801983448,6.8194,146.64,146.57,20.0]
[1728801983632,6.8199,146.63,146.59,20.0]
[1728801984738,6.8199,146.63,146.57,20.0]
[1728801985345,6.8199,146.63,146.56,20.0]
[1728801985851,6.8199,146.63,146.58,20.0]
[1728801987026,6.8199,146.63,146.57,23.776884]
[1728801987859,15.5946,146.66,146.57,23.776884]
[1728801988054,6.8203,146.62,146.57,23.776884]
[1728801992656,6.8203,146.62,146.55,43.776884]
[1728801993168,6.82,146.63,146.55,55.17886405]
[1728802002764,6.8208,146.61,146.55,43.776884]
[1728802003446,29.2056,146.62,146.55,43.776884]
[1728802004963,22.3852,146.62,146.55,43.776884]
[1728802012452,22.3852,146.62,146.56,1.36426416]
[1728802015263,22.3852,146.62,146.55,43.776884]
[1728802015775,16.2111,146.62,146.55,43.776884]
[1728802016072,16.2111,146.62,146.55,55.17886405]
[1728802016276,16.2111,146.62,146.57,23.776884]
[1728802016448,16.2111,146.62,146.55,55.17886405]
[1728802016644,16.2111,146.62,146.57,23.776884]
[1728802019491,6.8195,146.64,146.58,20.0]
[1728802041822,6.819,146.65,146.59,23.776884]
[1728802043519,28.3462,146.66,146.6,1.36399395]
[1728802045006,28.3462,146.66,146.59,23.776884]
[1728802046621,28.3462,146.66,146.6,20.0]
[1728802049224,15.3906,146.66,146.61,25.14076699]
[1728802049410,6.8177,146.68,146.61,25.14076699]
[1728802049605,6.8177,146.68,146.61,1.36388299]
[1728802051205,6.8177,146.68,146.61,11.40198005]
[1728802051526,6.8177,146.68,146.62,20.0]
[1728802055716,6.8177,146.68,146.63,1.3637222]
[1728802056115,6.8177,146.68,146.62,20.0]
[1728802056515,6.8177,146.68,146.63,1.36372679]
[1728802056708,6.8177,146.68,146.62,20.0]
[1728802056926,6.8177,146.68,146.63,1.36372593]
[1728802057807,6.8177,146.68,146.62,20.0]
[1728802062630,6.8177,146.68,146.63,1.36369903]
[1728802062830,6.8177,146.68,146.62,20.0]
[1728802063028,6.8177,146.68,146.63,1.36363951]
[1728802064557,6.8177,146.68,146.63,1.36365652]
[1728802064911,6.8177,146.68,146.62,20.0]
[1728802065119,6.8177,146.68,146.63,1.3636626]
[1728802065434,6.8177,146.68,146.62,20.0]
[1728802067040,22.4426,146.7,146.62,20.0]
[1728802067210,22.4426,146.7,146.65,20.0]
[1728802067415,16.0,146.7,146.66,1.36341162]
[1728802068220,16.0,146.7,146.65,31.40198005]
[1728802068538,16.0,146.7,146.65,20.0]
[1728802073427,6.8157,146.72,146.65,20.0]
[1728802073744,6.8157,146.72,146.66,20.0]
[1728802076946,22.8333,146.74,146.66,11.40198005]
[1728802077124,6.8152,146.73,146.66,11.40198005]
[1728802077938,6.8152,146.73,146.67,20.0]
[1728802078724,6.8152,146.73,146.65,31.40198005]
[1728802084357,6.8152,146.73,146.65,20.0]
[1728802084530,6.8152,146.73,146.65,31.40198005]
[1728802090745,6.8152,146.73,146.67,20.0]
[1728802109072,22.8333,146.74,146.67,11.40198005]
[1728802109276,22.8333,146.74,146.68,11.40198005]
[1728802109684,6.8139,146.76,146.7,11.40198005]
[1728802110864,6.8139,146.76,146.69,11.40198005]
[1728802113280,6.8139,146.76,146.7,20.0]
[1728802126794,6.8139,146.76,146.71,1.36298294]
[1728802127477,6.8135,146.77,146.7,31.40198005]
[1728802127678,23.1787,146.78,146.7,31.40198005]
[1728802127887,23.1787,146.78,146.71,11.40198005]
[1728802127888,29.9917,146.78,146.71,11.40198005]
[1728802128996,29.9917,146.78,146.72,1.36286255]
[1728802129884,29.9917,146.78,146.72,21.36286255]
[1728802130083,29.9917,146.78,146.72,20.0]
[1728802130592,29.9917,146.78,146.71,11.40198005]
[1728802130593,29.9917,146.78,146.7,11.40198005]
[1728802130798,29.9917,146.78,146.71,20.0]
[1728802133695,6.8134,146.77,146.7,23.776884]
[1728802134005,6.8134,146.77,146.71,20.0]
[1728802134400,6.8134,146.77,146.7,23.776884]
[1728802134581,6.8134,146.77,146.71,20.0]
[1728802135791,6.8138,146.76,146.71,20.0]
[1728802136106,6.8144,146.75,146.69,20.0]
[1728802138387,6.814,146.76,146.69,20.0]
[1728802138595,6.814,146.76,146.69,31.40198005]
[1728802143030,6.8135,146.77,146.71,20.0]
[1728802143718,6.8135,146.77,146.72,1.36290573]
[1728802144310,6.8135,146.77,146.71,20.0]
[1728802144807,6.8135,146.77,146.71,11.40198005]
[1728802145008,6.8135,146.77,146.7,35.17886405]
[1728802145312,6.8135,146.77,146.71,20.0]
[1728802161832,26.7460589,146.78,146.72,1.3628714]
[1728802163521,26.7460589,146.78,146.72,11.40198005]
[1728802165023,23.1787,146.78,146.72,11.40198005]
[1728802169848,23.1787,146.78,146.71,31.40198005]
[1728802178322,23.1787,146.78,146.72,23.776884]
[1728802183338,23.1787,146.78,146.71,31.40198005]
[1728802188433,23.1787,146.78,146.71,20.0]
[1728802188635,6.8135,146.77,146.7,11.40198005]
[1728802188845,6.8135,146.77,146.71,20.0]
[1728802195256,6.8135,146.77,146.69,20.0]
[1728802195443,6.8135,146.77,146.71,20.0]
[1728802198157,6.8135,146.77,146.71,31.40198005]
[1728802202260,23.1787,146.78,146.71,31.40198005]
[1728802202443,29.9917,146.78,146.71,31.40198005]
[1728802215557,33.5590589,146.78,146.71,31.40198005]
[1728802216366,6.8134,146.77,146.71,31.40198005]
[1728802218152,6.8134,146.77,146.71,20.0]
[1728802218362,6.8134,146.77,146.72,20.0]
[1728802225156,26.7460589,146.78,146.72,20.0]
[1728802225342,33.5590589,146.78,146.72,20.0]
[1728802237063,29.9917,146.78,146.72,20.0]
[1728802237286,33.5590589,146.78,146.72,20.0]
[1728802239363,29.9917,146.78,146.72,20.0]
[1728802240166,33.5590589,146.78,146.72,20.0]
[1728802245362,26.7460589,146.78,146.72,20.0]
[1728802245667,20.0884589,146.78,146.72,20.0]
[1728802261576,3.5673589,146.78,146.73,11.40198005]
[1728802264375,3.5673589,146.8,146.74,11.40198005]
[1728802264580,28.0631,146.81,146.75,21.36254811]
[1728802264581,21.2516,146.81,146.75,21.36254811]
[1728802264890,21.2516,146.81,146.75,32.76452816]
[1728802270788,21.2516,146.81,146.75,36.57683783]
[1728802271000,21.2516,146.81,146.75,35.21428972]
[1728802271306,21.2516,146.81,146.76,1.36254353]
[1728802272603,21.2516,146.81,146.75,35.21428972]
[1728802272779,6.8107,146.83,146.77,20.0]
[1728802273307,6.8104,146.84,146.77,31.40198005]
[1728802277391,23.2479,146.85,146.77,20.0]
[1728802277594,23.2479,146.85,146.76,20.0]
[1728802278288,6.8115,146.81,146.75,43.776884]
[1728802278689,6.8115,146.81,146.75,20.0]
[1728802279116,6.8121,146.8,146.73,31.40198005]
[1728802279692,40.802484,146.84,146.73,31.40198005]
[1728802279892,6.8116,146.81,146.73,31.40198005]
[1728802281013,6.8116,146.81,146.74,11.40198005]
[1728802281391,6.8116,146.81,146.75,20.0]
[1728802283615,6.8116,146.81,146.75,11.40198005]
[1728802283785,6.8116,146.81,146.76,20.0]
[1728802284919,6.8111,146.82,146.77,1.36258893]
[1728802285518,6.8111,146.82,146.76,20.0]
[1728802286917,23.2479,146.85,146.76,31.40198005]
[1728802287093,6.8107,146.83,146.76,31.40198005]
[1728802287296,6.8107,146.83,146.77,11.40198005]
[1728802288520,6.8107,146.83,146.76,11.40198005]
[1728802288814,6.8107,146.83,146.77,20.0]
[1728802299017,23.776884,146.84,146.77,20.0]
[1728802299215,6.811,146.82,146.77,20.0]
[1728802302505,6.8107,146.83,146.77,20.0]
[1728802302705,6.8111,146.82,146.76,11.40198005]
[1728802303225,6.8111,146.82,146.77,20.0]
[1728802304519,6.8115,146.81,146.76,20.0]
[1728802308532,6.8115,146.81,146.73,20.0]
[1728802308823,6.8115,146.81,146.75,20.0]
[1728802312226,21.9816,146.81,146.73,20.0]
[1728802312525,21.9816,146.81,146.75,20.0]
[1728802318411,6.8121,146.8,146.75,20.0]
[1728802318606,6.8121,146.8,146.73,31.40198005]
[1728802325919,21.3977,146.81,146.73,31.40198005]
[1728802326118,28.2093,146.81,146.73,31.40198005]
[1728802326319,28.2093,146.81,146.75,20.0]
[1728802327414,6.8121,146.8,146.73,31.40198005]
[1728802327644,6.8121,146.8,146.74,20.0]
[1728802328342,21.3977,146.81,146.74,20.0]
[1728802328554,28.2093,146.81,146.74,20.0]
[1728802330039,21.3977,146.81,146.74,20.0]
[1728802330240,21.3977,146.81,146.72,19.33024937]
[1728802330241,6.8129,146.78,146.68,22.2038]
[1728802330447,6.8129,146.78,146.7,11.40198005]
[1728802330622,6.8134,146.77,146.7,11.40198005]
[1728802330939,6.814,146.76,146.68,33.60578005]
[1728802331242,6.814,146.76,146.68,31.13955851]
[1728802331652,30.590584,146.77,146.68,27.32998005]
[1728802332538,30.590584,146.77,146.69,20.0]
[1728802333342,37.251484,146.77,146.69,20.0]
[1728802333538,6.8138,146.76,146.69,20.0]
[1728802334446,6.8138,146.76,146.69,1.36316365]
[1728802334746,6.8138,146.76,146.69,21.36316365]
[1728802339249,37.251284,146.77,146.7,20.0]
[1728802346967,37.251284,146.77,146.66,20.0]
[1728802347137,37.251284,146.77,146.69,11.40198005]
[1728802347337,37.251284,146.77,146.7,20.0]
[1728802348152,37.251284,146.77,146.67,23.776884]
[1728802348153,6.8138,146.76,146.68,31.40198005]
[1728802348476,6.8143,146.75,146.68,20.0]
[1728802348641,6.8139,146.76,146.68,20.0]
[1728802348839,6.8139,146.76,146.68,31.40198005]
[1728802351661,37.251284,146.77,146.69,11.40198005]
[1728802351962,37.251284,146.77,146.7,20.0]
[1728802352144,6.8139,146.76,146.7,20.0]
[1728802352545,6.8139,146.76,146.69,20.0]
[1728802353269,16.3057,146.75,146.67,20.0]
[1728802353443,6.8148,146.74,146.67,20.0]
[1728802357648,6.8148,146.74,146.65,20.0]
[1728802357848,6.8148,146.74,146.66,11.40198005]
[1728802358352,6.8148,146.74,146.67,20.0]
[1728802363573,6.8148,146.74,146.67,11.40198005]
[1728802363878,6.8148,146.74,146.68,20.0]
[1728802364176,6.8148,146.74,146.68,21.36334795]
[1728802368678,6.8148,146.74,146.68,20.0]
[1728802370694,16.3057,146.75,146.68,20.0]
[1728802370870,23.1203,146.75,146.68,20.0]
[1728802377390,6.815,146.74,146.66,23.776884]
[1728802377596,6.815,146.74,146.67,20.0]
[1728802382186,6.8153,146.73,146.67,20.0]
[1728802387083,16.3057,146.75,146.67,20.0]
[1728802387282,6.8149,146.74,146.67,20.0]
[1728802390305,6.8159,146.72,146.65,20.0]
[1728802391807,6.8161,146.71,146.65,20.0]
[1728802394525,23.776884,146.73,146.65,31.40198005]